fUST/lending_fUST_20260418
["ID","MTS","AMOUNT","RATE_DAILY","PERIOD"]
[420775071,1776527286652,523.85,0.00024657,120]
[420775076,1776527287103,500.0,0.00024657,120]
[420775078,1776527287241,500.0,0.00024657,120]
[420775080,1776527287359,500.0,0.00024657,120]
[420775082,1776527287473,500.0,0.00024657,120]
[420775084,1776527287589,500.0,0.00024657,120]
[420775086,1776527287719,500.0,0.00024657,120]
[420775113,1776527290775,500.0,0.00024657,120]
[420775118,1776527291353,500.0,0.00024657,120]
[420775122,1776527291596,500.0,0.00024657,120]
[420775274,1776527310515,228.93503203,0.00024657,120]
[420775403,1776527325912,485.11017151,0.00024657,120]
[420775420,1776527327793,500.0,0.00024657,120]
[420775421,1776527328019,222.33,0.00024657,120]
[420775610,1776527351247,500.0,0.00024657,120]
[420775612,1776527351480,500.0,0.00024657,120]
[420775626,1776527353393,500.0,0.00024657,120]
[420775629,1776527353629,500.0,0.00024657,120]
[420775677,1776527360171,500.0,0.00024657,120]
[420775679,1776527360397,569.16,0.00024657,120]
[420775706,1776527364953,500.0,0.00024657,120]
[420775707,1776527365198,500.0,0.00024657,120]
[420775857,1776527386810,500.0,0.00024657,120]
[420775860,1776527387059,500.0,0.00024657,120]
[420775884,1776527389891,500.0,0.00024657,120]
[420775885,1776527390161,194.88538292,0.00024657,120]
[420776024,1776527407300,500.0,0.00024657,120]
[420776027,1776527407533,500.0,0.00024657,120]
[420776222,1776527432019,-1012.27440141,8.649e-05,2]
[420776224,1776527432030,-3460.67818282,8.649e-05,2]
[420776225,1776527432041,-527.04741577,8.649e-05,2]
[420776226,1776527432050,-233.50306045,8.693e-05,2]
[420776228,1776527432257,-371.505,8.736e-05,2]
[420776229,1776527432267,-505.0,8.736e-05,2]
[420776231,1776527432276,-1270.61758296,8.806e-05,2]
[420776232,1776527432286,-2517.23977326,8.906e-05,2]
[420776233,1776527432296,-2820.31990797,9.006e-05,2]
[420776234,1776527432305,-3220.37957969,9.206e-05,2]
[420776235,1776527432314,-300.0,9.559e-05,2]
[420776236,1776527432324,-300.0,9.559e-05,2]
[420776237,1776527432333,-300.0,9.559e-05,2]
[420776238,1776527432343,-300.0,9.559e-05,2]
[420776239,1776527432353,-300.0,9.559e-05,2]
[420776240,1776527432363,-300.0,9.559e-05,2]
[420776241,1776527432372,-300.0,9.559e-05,2]
[420776242,1776527432381,-300.0,9.559e-05,2]
[420776244,1776527432390,-300.0,9.559e-05,2]
[420776245,1776527432399,-300.0,9.559e-05,2]
[420776246,1776527432409,-300.0,9.559e-05,2]
[420776247,1776527432419,-300.0,9.559e-05,2]
[420776248,1776527432429,-300.0,9.559e-05,2]
[420776249,1776527432439,-300.0,9.559e-05,2]
[420776250,1776527432450,-255.75638809,9.559e-05,2]
[420776251,1776527432463,-44.24361191,9.559e-05,2]
[420776252,1776527432473,-1408.0,9.759e-05,2]
[420776253,1776527432482,-645.0,9.759e-05,2]
[420776254,1776527432492,-2208.0,9.759e-05,2]
[420776255,1776527432502,-266.912,9.759e-05,2]
[420776256,1776527432511,-3420.4094156,9.795e-05,2]
[420776258,1776527432522,-167.0,9.8e-05,2]
[420776259,1776527432531,-167.0,9.8e-05,2]
[420776260,1776527432542,-275.53361133,0.00010693,2]
[420776261,1776527432551,-1426.23057895,0.00010754,2]
[420776262,1776527432567,-327.28709914,0.00010754,2]
[420776263,1776527432589,-1866.92157342,0.00010754,2]
[420776264,1776527432599,-500.0,0.00010958,2]
[420776265,1776527432609,-500.0,0.00010958,2]
[420776266,1776527432619,-500.0,0.00010958,2]
[420776267,1776527432629,-500.0,0.00010958,2]
[420776268,1776527432639,-500.0,0.00010958,2]
[420776270,1776527432648,-500.0,0.00010958,2]
[420776271,1776527432658,-500.0,0.00010958,2]
[420776272,1776527432667,-500.0,0.00010958,2]
[420776273,1776527432678,-500.0,0.00010958,2]
[420776274,1776527432687,-500.0,0.00010958,2]
[420776275,1776527432697,-500.0,0.00010958,2]
[420776276,1776527432706,-500.0,0.00010958,2]
[420776277,1776527432716,-500.0,0.00010958,2]
[420776278,1776527432725,-232.25131813,0.00010958,2]
[420776279,1776527432735,-500.0,0.00010958,2]
[420776280,1776527432744,-500.0,0.00010958,2]
[420776281,1776527432753,-500.0,0.00010958,2]
[420776282,1776527432762,-500.0,0.00010958,2]
[420776284,1776527432771,-500.0,0.00010958,2]
[420776285,1776527432781,-500.0,0.00010958,2]
[420776286,1776527432790,-500.0,0.00010958,2]
[420776287,1776527432799,-500.0,0.00010958,2]
[420776288,1776527432808,-500.0,0.00010958,2]
[420776289,1776527432817,-186.73667737,0.00010958,2]
[420776290,1776527432826,-500.0,0.00010958,2]
[420776291,1776527432836,-500.0,0.00010958,2]
[420776292,1776527432846,-500.0,0.00010958,2]
[420776293,1776527432856,-500.0,0.00010959,2]
[420776294,1776527432865,-500.0,0.00010959,2]
[420776295,1776527432875,-500.0,0.00010959,2]
[420776296,1776527432884,-15380.3736,0.00010959,2]
[420776298,1776527432894,-150.0,0.0001096,2]
[420776299,1776527432903,-500.0,0.00011232,2]
[420776300,1776527432912,-150.0,0.0001126,2]
[420776301,1776527432922,-500.0,0.00011506,2]
[420776302,1776527432932,-312.0,0.00011507,3]
[420776303,1776527432941,-150.0,0.0001156,2]
[420776304,1776527432951,-6145.40381722,0.00011582,2]
[420776305,1776527432960,-357.90076413,0.00011582,2]
[420776306,1776527432969,-649.15143598,0.0001168,2]
[420776307,1776527432978,-1609.06982892,0.0001168,2]
[420776308,1776527432988,-1609.06982892,0.0001168,2]
[420776309,1776527432998,-1609.06982892,0.0001168,2]
[420776310,1776527433007,-1609.06982892,0.0001168,2]
[420776312,1776527433017,-1609.06982892,0.0001168,2]
[420776313,1776527433026,-1609.06982892,0.0001168,2]
[420776314,1776527433035,-1609.06982892,0.0001168,2]
[420776315,1776527433044,-1609.06982892,0.0001168,2]
[420776316,1776527433053,-1609.06982892,0.0001168,2]
[420776317,1776527433063,-1609.06982892,0.0001168,2]
[420776318,1776527433072,-4369.3467992,0.00011682,2]
[420776319,1776527433084,-440.41335325,0.00011682,2]
[420776320,1776527433095,-1004.47234941,0.00011682,2]
[420776321,1776527433107,-2994.07694886,0.00011682,2]
[420776322,1776527433118,-36254.97415609,0.00011682,2]
[420776323,1776527433129,-2517.75984909,0.00011682,2]
[420776324,1776527433138,-2156.34015089,0.00011682,2]
[420776326,1776527433152,-1577.68982451,0.00011682,2]
[420776327,1776527433162,-772.37865599,0.00011682,2]
[420776328,1776527433175,-752.87842,0.00011682,2]
[420776329,1776527433188,-2094.96246121,0.00011682,2]
[420776368,1776527438376,-5000.0,0.00011563,2]
[420776369,1776527438386,-1609.06982892,0.0001168,2]
[420776370,1776527438395,-1609.06982892,0.0001168,2]
[420776371,1776527438405,-1609.06982892,0.0001168,2]
[420776372,1776527438414,-1609.06982892,0.0001168,2]
[420776373,1776527438424,-1609.06982892,0.0001168,2]
[420776374,1776527438433,-1609.06982892,0.0001168,2]
[420776375,1776527438443,-1609.06982892,0.0001168,2]
[420776376,1776527438452,-1609.06982892,0.0001168,2]
[420776377,1776527438463,-1159.19136864,0.0001168,2]
[420776379,1776527438538,-449.87846028,0.0001168,2]
[420776380,1776527438548,-1609.06982892,0.0001168,2]
[420776381,1776527438557,-1609.06982892,0.0001168,2]
[420776382,1776527438571,-6996.5463091,0.00011682,2]
[420776383,1776527438582,-3015.4399256,0.00011682,2]
[420776384,1776527438592,-3763.86196357,0.00011713,2]
[420776385,1776527438602,-150.0,0.0001186,2]
[420776386,1776527438612,-300.0,0.00011913,2]
[420776387,1776527438624,-300.0,0.00011913,2]
[420776389,1776527438634,-300.0,0.00011913,2]
[420776390,1776527438644,-600.0,0.00011915,2]
[420776391,1776527438654,-357.90076413,0.00012061,2]
[420776392,1776527438664,-150.0,0.0001216,2]
[420776393,1776527438673,-499.07684838,0.00012486,2]
[420776394,1776527438684,-168.75119369,0.000125,3]
[420776395,1776527438694,-357.90076413,0.00012539,2]
[420776396,1776527438704,-150.0,0.00012589,2]
[420776397,1776527438714,-167.0,0.000126,2]
[420776398,1776527438723,-167.0,0.000126,2]
[420776399,1776527438732,-186.0,0.00012603,3]
[420776400,1776527438743,-3820.46908743,0.00012672,2]
[420776401,1776527438753,-317.56416221,0.00012693,2]
[420776402,1776527438762,-167.0,0.000127,2]
[420776404,1776527438772,-167.0,0.000127,3]
[420776405,1776527438782,-167.0,0.000127,3]
[420776406,1776527438791,-150.0,0.0001276,2]
[420776407,1776527438801,-151.0,0.000128,2]
[420776408,1776527438811,-160.0,0.00012896,2]
[420776409,1776527438821,-160.0,0.00012896,2]
[420776410,1776527438832,-228.16430738,0.00012896,2]
[420776411,1776527438841,-151.0,0.000129,2]
[420776412,1776527438850,-151.0,0.000129,2]
[420776413,1776527438861,-151.0,0.000129,2]
[420776414,1776527438872,-151.0,0.000129,2]
[420776415,1776527438882,-20896.92394368,0.000129,2]
[420776416,1776527438892,-20896.92394367,0.000129,2]
[420776418,1776527438902,-5888.0,0.0001293,2]
[420776419,1776527438912,-5888.0,0.00012956,2]
[420776420,1776527438922,-537.6845,0.00012962,2]
[420776421,1776527438932,-478.75725327,0.00012962,2]
[420776422,1776527438941,-162.380719,0.00012962,2]
[420776423,1776527438951,-1100.0178,0.00012962,2]
[420776424,1776527438960,-537.6845,0.00012962,2]
[420776425,1776527438970,-276.42320153,0.00012962,2]
[420776426,1776527438980,-2150.738,0.00012962,2]
[420776427,1776527438990,-5888.0,0.00012972,2]
[420776428,1776527438999,-151.0,0.00013,2]
[420776429,1776527439010,-151.0,0.00013,2]
[420776430,1776527439020,-151.0,0.00013,2]
[420776431,1776527439030,-557.5788265,0.00013017,2]
[420776433,1776527439040,-357.90076413,0.00013018,2]
[420776434,1776527439049,-5888.0,0.0001303,2]
[420776435,1776527439059,-150.0,0.0001306,2]
[420776436,1776527439069,-578.20924308,0.00013072,2]
[420776437,1776527439079,-151.0,0.000131,2]
[420776438,1776527439088,-151.0,0.000131,2]
[420776441,1776527439304,-151.0,0.000131,2]
[420776442,1776527439314,-151.0,0.000131,2]
[420776443,1776527439324,-151.0,0.000131,2]
[420776444,1776527439333,-720.0,0.00013106,2]
[420776445,1776527439342,-599.60298507,0.00013127,2]
[420776446,1776527439352,-5888.0,0.00013134,2]
[420776447,1776527439361,-10616.7658463,0.00013162,2]
[420776448,1776527439371,-2368.9206635,0.00013162,2]
[420776449,1776527439380,-621.78829552,0.00013182,2]
[420776450,1776527439389,-151.0,0.000132,2]
[420776451,1776527439398,-151.0,0.000132,2]
[420776452,1776527439408,-151.0,0.000132,2]
[420776454,1776527439418,-151.0,0.000132,2]
[420776455,1776527439427,-160.0,0.00013233,14]
[420776456,1776527439436,-644.79446245,0.00013237,2]
[420776457,1776527439446,-5888.0,0.00013243,2]
[420776458,1776527439455,-151.0,0.000133,2]
[420776459,1776527439465,-151.0,0.000133,2]
[420776460,1776527439475,-151.0,0.000133,2]
[420776461,1776527439484,-151.0,0.000133,2]
[420776462,1776527439493,-151.0,0.000133,2]
[420776463,1776527439503,-151.0,0.000133,2]
[420776464,1776527439512,-151.0,0.000133,2]
[420776465,1776527439521,-151.0,0.000133,2]
[420776466,1776527439531,-151.0,0.000133,2]
[420776468,1776527439541,-5888.0,0.0001331,2]
[420776469,1776527439551,-5888.0,0.00013311,2]
[420776470,1776527439560,-5888.0,0.00013341,2]
[420776471,1776527439570,-150.0,0.0001336,2]
[420776472,1776527439579,-5888.0,0.0001337,2]
[420776473,1776527439588,-20896.92394367,0.0001339,2]
[420776474,1776527439598,-5888.0,0.00013397,2]
[420776475,1776527439607,-151.0,0.000134,2]
[420776476,1776527439616,-151.0,0.000134,2]
[420776477,1776527439627,-151.0,0.000134,2]
[420776478,1776527439636,-151.0,0.000134,2]
[420776479,1776527439647,-151.0,0.000134,2]
[420776480,1776527439656,-151.0,0.000134,2]
[420776482,1776527439666,-151.0,0.000134,2]
[420776483,1776527439675,-151.0,0.000134,2]
[420776484,1776527439684,-151.0,0.000134,2]
[420776485,1776527439694,-5888.0,0.00013408,2]
[420776486,1776527439703,-161.484575,0.00013425,2]
[420776487,1776527439713,-185.026538,0.00013425,2]
[420776488,1776527439722,-160.0,0.00013425,2]
[420776489,1776527439731,-1162.246116,0.00013425,2]
[420776490,1776527439740,-2164.492233,0.00013425,2]
[420776491,1776527439750,-5888.0,0.00013473,2]
[420776492,1776527439759,-2368.9206635,0.00013492,2]
[420776493,1776527439768,-528.577647,0.00013492,2]
[420776494,1776527439777,-357.90076413,0.00013496,2]
[420776495,1776527439786,-151.0,0.000135,2]
[420776497,1776527439795,-151.0,0.000135,2]
[420776498,1776527439806,-151.0,0.000135,2]
[420776499,1776527439815,-151.0,0.000135,2]
[420776500,1776527439825,-151.0,0.000135,2]
[420776501,1776527439834,-151.0,0.000135,2]
[420776502,1776527439844,-151.0,0.000135,2]
[420776503,1776527439853,-151.0,0.000135,2]
[420776504,1776527439862,-151.0,0.000135,2]
[420776505,1776527439872,-151.0,0.000135,2]
[420776506,1776527439882,-151.0,0.000135,2]
[420776507,1776527439891,-151.0,0.000135,2]
[420776508,1776527439901,-151.0,0.000135,2]
[420776510,1776527439911,-5888.0,0.00013525,2]
[420776513,1776527439921,-5888.0,0.00013539,2]
[420776514,1776527439930,-454.7149268,0.00013573,2]
[420776515,1776527439939,-325.1783322,0.00013583,2]
[420776516,1776527439949,-12477.8848014,0.0001359,2]
[420776517,1776527439959,-5888.0,0.00013596,2]
[420776518,1776527439968,-151.0,0.000136,2]
[420776519,1776527439978,-151.0,0.000136,2]
[420776520,1776527439988,-151.0,0.000136,2]
[420776521,1776527439999,-151.0,0.000136,2]
[420776522,1776527440009,-151.0,0.000136,2]
[420776523,1776527440019,-151.0,0.000136,2]
[420776524,1776527440028,-151.0,0.000136,2]
[420776525,1776527440038,-151.0,0.000136,2]
[420776527,1776527440047,-151.0,0.000136,2]
[420776528,1776527440056,-151.0,0.000136,2]
[420776529,1776527440066,-5888.0,0.00013659,2]
[420776530,1776527440076,-150.0,0.0001366,2]
[420776531,1776527440085,-647.58690155,0.00013673,2]
[420776532,1776527440095,-500.0,0.00013673,2]
[420776533,1776527440104,-500.0,0.00013673,2]
[420776534,1776527440114,-554.16890055,0.00013673,2]
[420776535,1776527440124,-500.0,0.00013673,2]
[420776536,1776527440133,-503.76692949,0.00013673,2]
[420776537,1776527440143,-502.62934024,0.00013673,2]
[420776538,1776527440152,-169.42692145,0.00013673,2]
[420776539,1776527440162,-574.24455203,0.00013673,2]
[420776541,1776527440171,-500.0,0.00013673,2]
[420776542,1776527440180,-500.0,0.00013673,2]
[420776543,1776527440190,-505.78784371,0.00013673,2]
[420776544,1776527440199,-500.0,0.00013673,2]
[420776545,1776527440208,-500.18565856,0.00013673,2]
[420776546,1776527440218,-500.0,0.00013673,2]
[420776547,1776527440227,-166.96603322,0.00013673,2]
[420776548,1776527440236,-160.9589548,0.00013673,2]
[420776549,1776527440246,-536.85540735,0.00013673,2]
[420776550,1776527440255,-362.21633919,0.00013673,2]
[420776551,1776527440264,-500.0,0.00013673,2]
[420776552,1776527440274,-271.83120205,0.00013673,2]
[420776553,1776527440283,-500.0,0.00013673,2]
[420776554,1776527440292,-500.73004885,0.00013673,2]
[420776556,1776527440302,-500.0,0.00013673,2]
[420776557,1776527440312,-500.0,0.00013673,2]
[420776558,1776527440321,-500.0,0.00013673,2]
[420776559,1776527440331,-500.82983759,0.00013673,2]
[420776560,1776527440340,-500.0,0.00013673,2]
[420776561,1776527440349,-500.0,0.00013673,2]
[420776562,1776527440359,-531.6263721,0.00013673,2]
[420776563,1776527440367,-531.49496894,0.00013673,2]
[420776564,1776527440377,-213.08264853,0.00013673,2]
[420776565,1776527440386,-501.25981471,0.00013673,2]
[420776566,1776527440395,-172770.87068537,0.0001369,7]
[420776567,1776527440405,-408283.37486881,0.0001369,7]
[420776568,1776527440414,-269754.11598507,0.0001369,7]
[420776569,1776527440427,-7999.07002064,0.0001369,7]
[420776598,1776527443350,-300.0,0.00011913,2]
[420776599,1776527443359,-300.0,0.00011913,2]
[420776600,1776527443369,-44.0,0.00011913,2]
[420776617,1776527445466,500.0,0.00024657,120]
[420776620,1776527445710,500.0,0.00024657,120]
[420776636,1776527446521,-184.232,9.801e-05,2]
[420776637,1776527446531,-250.0,0.00011428,2]
[420776638,1776527446540,-256.0,0.00011913,2]
[420776639,1776527446549,-300.0,0.00011913,2]
[420776640,1776527446560,-300.0,0.00011913,2]
[420776641,1776527446569,-300.0,0.00011913,2]
[420776642,1776527446579,-300.0,0.00011913,2]
[420776644,1776527446589,-300.0,0.00011913,2]
[420776645,1776527446598,-184.0,0.00012801,2]
[420776646,1776527446607,-10956.08180929,0.0001369,7]
[420776647,1776527446620,-2966.37331664,0.0001369,7]
[420776648,1776527446632,-756.85469116,0.0001369,7]
[420776925,1776527480227,594.58,0.00024657,120]
[420777005,1776527492094,500.0,0.00024657,120]
[420777084,1776527501914,500.0,0.00024657,120]
[420777087,1776527502137,528.85,0.00024657,120]
[420777170,1776527513353,500.0,0.00024657,120]
[420777205,1776527517588,500.0,0.00024657,120]
[420777208,1776527517812,500.0,0.00024657,120]
[420777209,1776527517894,500.0,0.00024657,120]
[420777335,1776527534554,500.0,0.00024657,120]
[420777337,1776527534802,500.0,0.00024657,120]
[420777353,1776527536677,500.0,0.00024657,120]
[420777356,1776527536906,408.81082994,0.00024657,120]
[420777386,1776527541343,500.0,0.00024657,120]
[420777388,1776527541470,500.0,0.00024657,120]
[420777394,1776527542069,500.0,0.00024657,120]
[420777397,1776527542343,392.28,0.00024657,120]
[420777404,1776527543172,500.0,0.00024657,120]
[420777417,1776527544791,500.0,0.00024657,120]
[420777445,1776527548760,500.0,0.00024657,120]
[420777448,1776527549001,500.0,0.00024657,120]
[420777450,1776527549069,500.0,0.00023512,120]
[420777452,1776527549242,500.0,0.00024657,120]
[420777455,1776527549479,500.0,0.00024657,120]
[420777458,1776527549748,369.55,0.00024657,120]
[420777482,1776527552812,500.0,0.00024657,120]
[420777485,1776527553038,500.0,0.00024657,120]
[420777488,1776527553247,219.23835588,0.00024657,120]
[420777489,1776527553320,500.0,0.00024657,120]
[420777491,1776527553504,500.0,0.00024657,120]
[420777494,1776527553731,500.0,0.00024657,120]
[420777497,1776527553959,500.0,0.00024657,120]
[420777503,1776527554681,179.76,0.00024657,120]
[420777517,1776527556377,500.0,0.00024657,120]
[420777521,1776527556769,500.0,0.00024657,120]
[420777524,1776527557014,500.0,0.00024657,120]
[420777526,1776527557269,500.0,0.00024657,120]
[420777529,1776527557502,500.0,0.00024657,120]
[420777532,1776527557737,500.0,0.00024657,120]
[420777536,1776527558164,500.0,0.00024657,120]
[420777537,1776527558241,500.0,0.00024657,120]
[420777540,1776527558546,500.0,0.00024657,120]
[420777543,1776527558725,500.0,0.00024657,120]
[420777546,1776527558962,500.0,0.00024657,120]
[420777548,1776527559191,500.0,0.00024657,120]
[420777551,1776527559428,500.0,0.00024657,120]
[420777554,1776527559655,435.32,0.00024657,120]
[420777563,1776527560589,500.0,0.00024657,120]
[420777566,1776527560827,500.0,0.00024657,120]
[420777569,1776527561069,280.52,0.00024657,120]
[420777581,1776527562868,500.0,0.00024657,120]
[420777584,1776527563110,500.0,0.00024657,120]
[420777588,1776527563473,500.0,0.00024657,120]
[420777591,1776527563705,500.0,0.00024657,120]
[420777594,1776527563971,500.0,0.00024657,120]
[420777597,1776527564221,500.0,0.00024657,120]
[420777600,1776527564449,500.0,0.00024657,120]
[420777603,1776527564678,500.0,0.00024657,120]
[420777606,1776527564926,500.0,0.00024657,120]
[420777609,1776527565184,500.0,0.00024657,120]
[420777611,1776527565401,325.75,0.00024657,120]
[420777627,1776527567207,500.0,0.00024657,120]
[420777632,1776527567781,500.0,0.00024657,120]
[420777635,1776527568004,375.32,0.00024657,120]
[420777644,1776527569003,500.0,0.00024657,120]
[420777646,1776527569222,564.92,0.00024657,120]
[420777653,1776527569915,500.0,0.00024657,120]
[420777655,1776527570130,500.0,0.00024657,120]
[420777658,1776527570380,500.0,0.00024657,120]
[420777661,1776527570612,500.0,0.00024657,120]
[420777664,1776527570840,500.0,0.00024657,120]
[420777667,1776527571105,500.0,0.00024657,120]
[420777670,1776527571329,377.38,0.00024657,120]
[420777681,1776527572586,500.0,0.00024657,120]
[420777682,1776527572663,500.0,0.00024657,120]
[420777684,1776527572811,500.0,0.00024657,120]
[420777687,1776527573038,500.0,0.00024657,120]
[420777690,1776527573266,500.0,0.00024657,120]
[420777692,1776527573490,500.0,0.00024657,120]
[420777696,1776527573787,500.0,0.00024657,120]
[420777698,1776527574009,364.52,0.00024657,120]
[420777702,1776527574630,500.0,0.00024657,120]
[420777703,1776527574869,500.0,0.00024657,120]
[420777726,1776527577681,500.0,0.00024657,120]
[420777729,1776527578041,500.0,0.00024657,120]
[420777732,1776527578278,500.0,0.00024657,120]
[420777735,1776527578507,500.0,0.00024657,120]
[420777737,1776527578720,500.0,0.00024657,120]
[420777740,1776527578998,500.0,0.00024657,120]
[420777742,1776527579084,207.5,0.00024657,120]
[420777765,1776527582119,500.0,0.00024657,120]
[420777767,1776527582228,500.0,0.00024657,120]
[420777769,1776527582365,500.0,0.00024657,120]
[420777772,1776527582605,500.0,0.00024657,120]
[420777775,1776527582853,500.0,0.00024657,120]
[420777778,1776527583092,500.0,0.00024657,120]
[420777781,1776527583333,500.0,0.00024657,120]
[420777784,1776527583583,500.0,0.00024657,120]
[420777786,1776527583825,500.0,0.00024657,120]
[420777792,1776527584430,500.0,0.00024657,120]
[420777794,1776527584764,168.74,0.00024657,120]
[420777803,1776527585719,500.0,0.00024657,120]
[420777829,1776527588934,500.0,0.00024657,120]
[420777834,1776527589395,500.0,0.00024657,120]
[420777836,1776527589458,558.39,0.00024657,120]
[420777838,1776527589593,500.0,0.00024657,120]
[420777840,1776527589687,500.0,0.00024657,120]
[420777841,1776527589788,500.0,0.00024657,120]
[420777844,1776527589988,500.0,0.00024657,120]
[420777847,1776527590277,249.92,0.00024657,120]
[420777861,1776527592003,500.0,0.00024657,120]
[420777864,1776527592226,500.0,0.00024657,120]
[420777866,1776527592305,500.0,0.00024657,120]
[420777867,1776527592389,500.0,0.00024657,120]
[420777869,1776527592473,500.0,0.00024657,120]
[420777871,1776527592547,500.0,0.00024657,120]
[420777872,1776527592624,500.0,0.00024657,120]
[420777874,1776527592709,500.0,0.00024657,120]
[420777875,1776527592791,339.2,0.00024657,120]
[420777877,1776527592878,500.0,0.00024657,120]
[420777879,1776527592953,500.0,0.00024657,120]
[420777880,1776527593073,500.0,0.00024657,120]
[420777882,1776527593153,500.0,0.00024657,120]
[420777884,1776527593247,500.0,0.00024657,120]
[420777885,1776527593334,500.0,0.00024657,120]
[420777887,1776527593440,500.0,0.00024657,120]
[420777889,1776527593529,500.0,0.00024657,120]
[420777891,1776527593697,500.0,0.00024657,120]
[420777892,1776527593770,500.0,0.00024657,120]
[420777894,1776527593935,500.0,0.00024657,120]
[420777896,1776527594009,500.0,0.00024657,120]
[420777898,1776527594157,306.56,0.00024657,120]
[420777900,1776527594230,500.0,0.00024657,120]
[420777902,1776527594416,610.97,0.00024657,120]
[420777905,1776527594804,500.0,0.00024657,120]
[420777915,1776527596186,500.0,0.00024657,120]
[420777918,1776527596421,500.0,0.00024657,120]
[420777920,1776527596651,500.0,0.00024657,120]
[420777935,1776527598650,500.0,0.00024657,120]
[420777937,1776527598911,500.0,0.00024657,120]
[420777941,1776527599571,500.0,0.00024657,120]
[420777943,1776527599656,563.47,0.00024657,120]
[420777952,1776527600751,500.0,0.00024657,120]
[420777955,1776527601017,500.0,0.00024657,120]
[420777958,1776527601236,500.0,0.00024657,120]
[420777961,1776527601467,500.0,0.00024657,120]
[420777963,1776527601710,500.0,0.00024657,120]
[420777966,1776527601866,500.0,0.00024657,120]
[420777967,1776527601945,272.9,0.00024657,120]
[420777969,1776527602116,500.0,0.00024657,120]
[420777972,1776527602351,481.96,0.00024657,120]
[420778014,1776527608034,500.0,0.00024657,120]
[420778017,1776527608262,620.94,0.00024657,120]
[420778022,1776527608786,500.0,0.00024657,120]
[420778024,1776527609006,500.0,0.00024657,120]
[420778027,1776527609231,500.0,0.00024657,120]
[420778030,1776527609455,500.0,0.00024657,120]
[420778034,1776527609861,274.42,0.00024657,120]
[420778046,1776527611440,500.0,0.00024657,120]
[420778047,1776527611662,500.0,0.00024657,120]
[420778048,1776527611840,500.0,0.00024657,120]
[420778049,1776527611914,500.0,0.00024657,120]
[420778051,1776527612089,500.0,0.00024657,120]
[420778052,1776527612167,500.0,0.00024657,120]
[420778054,1776527612310,382.64,0.00024657,120]
[420778056,1776527612381,182.54,0.00024657,120]
[420778082,1776527615757,500.0,0.00024657,120]
[420778085,1776527615999,221.01,0.00024657,120]
[420778088,1776527616354,500.0,0.00024657,120]
[420778091,1776527616585,500.0,0.00024657,120]
[420778094,1776527616830,455.34,0.00024657,120]
[420778105,1776527618280,500.0,0.00024657,120]
[420778108,1776527618509,500.0,0.00024657,120]